Organisation Name,Organisation Code,Directorate/Service,Service Category Label,Service Code,Supplier Name,Supplier Reference,Payment Date,Transaction Number,Net Payments,Purpose of Spend
North West Leicestershire District Council,31UH,Legal & Democratic,Legal Services,LDLS,11KBW,A046953,14/07/2021,1412716,2400.00,Legal & Professional Services
North West Leicestershire District Council,31UH,Information Technology,ICT Services,ICT,ACS Systems (UK) Ltd T/a ACS Office Solutions,A043447,21/07/2021,1412461,491.50,Computing
North West Leicestershire District Council,31UH,Housing Repairs,HRA Housing Repairs & Maintenance,HRAHRM,Alliance Contracting Solutions Ltd,A043325,07/07/2021,1412304,2670.00,Legal & Professional Services
North West Leicestershire District Council,31UH,Housing Repairs,HRA Housing Repairs & Maintenance,HRAHRM,Alliance Contracting Solutions Ltd,A043325,14/07/2021,1412211,29868.64,Legal & Professional Services
North West Leicestershire District Council,31UH,Street Management,Environment Parks,ENOP,Allstar Business Solutions Ltd,A039425,07/07/2021,1412345,286.79,Petrol
North West Leicestershire District Council,31UH,Street Management,Environment Transport,ENOT,Alpha Power Cleaners,A035656,14/07/2021,1412284,332.35,Consumable Materials
North West Leicestershire District Council,31UH,Chief Exec,Chief Executive,CHEX,Amion Consulting Ltd,A046790,07/07/2021,1412421,5676.00,PRE - District Signs
North West Leicestershire District Council,31UH,Street Management,Environment - Street Scene,ESS,Animal Care Services Limited,A046488,21/07/2021,1412788,2332.05,Contribution To Emda
North West Leicestershire District Council,31UH,Corporate Director,Human Resources,HR,Apse,A018837,21/07/2021,1412774,2422.00,Subscriptions
North West Leicestershire District Council,31UH,Environmental Health,Environmental Health & Licensing,EEHL,AquaSamplers,A046538,07/07/2021,1412335,450.00,Private & Pool Water Sampling
North West Leicestershire District Council,31UH,Environmental Health,Environmental Health & Licensing,EEHL,AquaSamplers,A046538,07/07/2021,1412336,546.20,Private & Pool Water Sampling
North West Leicestershire District Council,31UH,Economic Development,Business Focus Group,BFG,Arch Communications (UK) Ltd,A046458,07/07/2021,1412251,990.00,Consultants Fees
North West Leicestershire District Council,31UH,Economic Development,Business Focus Group,BFG,Arch Communications (UK) Ltd,A046458,07/07/2021,1412268,2040.00,Consultants Fees
North West Leicestershire District Council,31UH,Economic Development,Business Focus Group,BFG,Arch Communications (UK) Ltd,A046458,29/07/2021,1412953,660.00,Consultants Fees
North West Leicestershire District Council,31UH,Economic Development,Business Focus Group,BFG,Arch Communications (UK) Ltd,A046458,04/08/2021,1413387,510.00,Consultants Fees
North West Leicestershire District Council,31UH,Economic Development,Business Focus Group,BFG,Arch Communications (UK) Ltd,A046458,04/08/2021,1413388,660.00,Consultants Fees
North West Leicestershire District Council,31UH,Leisure & Culture,Cultural Services Arts & Events,CULTEV,Ashby de la Zouch Museum,A028013,21/07/2021,1412751,1460.00,Grants - Museums
North West Leicestershire District Council,31UH,Finance,Financial Planning,FINPLA,Ashby De La Zouch Town Council,A000091,07/07/2021,1412468,67873.42,Recreation & Play Areas
North West Leicestershire District Council,31UH,Finance,Exchequer Services,EXCH,Aspli,A042250,28/07/2021,1413228,662.00,Operational Equipment
North West Leicestershire District Council,31UH,Corporate Director,Human Resources,HR,Back Care Solutions Ltd,A045337,21/07/2021,1412914,1511.50,Furniture
North West Leicestershire District Council,31UH,Finance,Revenues,REVS,Redacted - Personal Data,A000133,07/07/2021,1412486,500.00,Test and Trace Grant
North West Leicestershire District Council,31UH,Finance,Revenues,REVS,Redacted - Personal Data,A000133,07/07/2021,1412487,500.00,Test and Trace Grant
North West Leicestershire District Council,31UH,Finance,Revenues,REVS,Redacted - Personal Data,A000133,07/07/2021,1412488,500.00,Test and Trace Grant
North West Leicestershire District Council,31UH,Finance,Revenues,REVS,Redacted - Personal Data,A000133,07/07/2021,1412489,500.00,Test and Trace Grant
North West Leicestershire District Council,31UH,Finance,Financial Planning,FINPLA,Redacted - Personal Data,A000133,07/07/2021,1412490,500.00,Test and Trace Grant
North West Leicestershire District Council,31UH,Finance,Revenues,REVS,Redacted - Personal Data,A000133,07/07/2021,1412491,500.00,Test and Trace Grant
North West Leicestershire District Council,31UH,Finance,Revenues,REVS,Redacted - Personal Data,A000133,07/07/2021,1412493,500.00,Test and Trace Grant
North West Leicestershire District Council,31UH,Finance,Revenues,REVS,Redacted - Personal Data,A000133,22/07/2021,1412919,500.00,Test and Trace Grant
North West Leicestershire District Council,31UH,Housing,HRA Housing Management,HRAHM,Redacted - Personal Data,A000133,22/07/2021,1412920,1000.00,Under Occupancy Incentives
North West Leicestershire District Council,31UH,Finance,Revenues,REVS,Redacted - Personal Data,A000133,22/07/2021,1412921,500.00,Test and Trace Grant
North West Leicestershire District Council,31UH,Finance,Revenues,REVS,Redacted - Personal Data,A000133,22/07/2021,1412922,500.00,Test and Trace Grant
North West Leicestershire District Council,31UH,Finance,Revenues,REVS,Redacted - Personal Data,A000133,22/07/2021,1412924,500.00,Test and Trace Grant
North West Leicestershire District Council,31UH,Finance,Revenues,REVS,Redacted - Personal Data,A000133,22/07/2021,1412925,500.00,Test and Trace Grant
North West Leicestershire District Council,31UH,Finance,Revenues,REVS,Redacted - Personal Data,A000133,22/07/2021,1412926,500.00,Test and Trace Grant
North West Leicestershire District Council,31UH,Finance,Revenues,REVS,Redacted - Personal Data,A000133,22/07/2021,1412927,500.00,Test and Trace Grant
North West Leicestershire District Council,31UH,Finance,Revenues,REVS,Redacted - Personal Data,A000133,22/07/2021,1412928,500.00,Test and Trace Grant
North West Leicestershire District Council,31UH,Finance,Revenues,REVS,Redacted - Personal Data,A000133,22/07/2021,1412929,500.00,Test and Trace Grant
North West Leicestershire District Council,31UH,Finance,Revenues,REVS,Redacted - Personal Data,A000133,22/07/2021,1412931,500.00,Test and Trace Grant
North West Leicestershire District Council,31UH,Finance,Revenues,REVS,Redacted - Personal Data,A000133,22/07/2021,1412932,500.00,Test and Trace Grant
North West Leicestershire District Council,31UH,Finance,Revenues,REVS,Redacted - Personal Data,A000133,22/07/2021,1412933,500.00,Test and Trace Grant
North West Leicestershire District Council,31UH,Finance,Revenues,REVS,Redacted - Personal Data,A000133,22/07/2021,1412934,500.00,Test and Trace Grant
North West Leicestershire District Council,31UH,Finance,Revenues,REVS,Redacted - Personal Data,A000133,22/07/2021,1412935,500.00,Test and Trace Grant
North West Leicestershire District Council,31UH,Finance,Revenues,REVS,Redacted - Personal Data,A000133,22/07/2021,1412936,500.00,Test and Trace Grant
North West Leicestershire District Council,31UH,Finance,Revenues,REVS,Redacted - Personal Data,A000133,22/07/2021,1412937,500.00,Test and Trace Grant
North West Leicestershire District Council,31UH,Finance,Revenues,REVS,Redacted - Personal Data,A000133,22/07/2021,1412940,500.00,Test and Trace Grant
North West Leicestershire District Council,31UH,Finance,Revenues,REVS,Redacted - Personal Data,A000133,22/07/2021,1412941,500.00,Test and Trace Grant
North West Leicestershire District Council,31UH,Finance,Revenues,REVS,Redacted - Personal Data,A000133,22/07/2021,1412942,500.00,Test and Trace Grant
North West Leicestershire District Council,31UH,Finance,Revenues,REVS,Redacted - Personal Data,A000133,22/07/2021,1412943,500.00,Test and Trace Grant
North West Leicestershire District Council,31UH,Finance,Revenues,REVS,Redacted - Personal Data,A000133,22/07/2021,1412944,500.00,Test and Trace Grant
North West Leicestershire District Council,31UH,Finance,Revenues,REVS,Redacted - Personal Data,A000133,28/07/2021,1413219,500.00,Test and Trace Grant
North West Leicestershire District Council,31UH,Finance,Revenues,REVS,Redacted - Personal Data,A000133,28/07/2021,1413221,500.00,Test and Trace Grant
North West Leicestershire District Council,31UH,Finance,Revenues,REVS,Redacted - Personal Data,A000133,28/07/2021,1413222,500.00,Test and Trace Grant
North West Leicestershire District Council,31UH,Finance,Revenues,REVS,Redacted - Personal Data,A000133,28/07/2021,1413223,500.00,Test and Trace Grant
North West Leicestershire District Council,31UH,Finance,Revenues,REVS,Redacted - Personal Data,A000133,28/07/2021,1413224,500.00,Test and Trace Grant
North West Leicestershire District Council,31UH,Finance,Revenues,REVS,Redacted - Personal Data,A000133,28/07/2021,1413225,500.00,Test and Trace Grant
North West Leicestershire District Council,31UH,Finance,Revenues,REVS,Redacted - Personal Data,A000133,28/07/2021,1413226,500.00,Test and Trace Grant
North West Leicestershire District Council,31UH,Finance,Revenues,REVS,Redacted - Personal Data,A000133,28/07/2021,1413227,500.00,Test and Trace Grant
North West Leicestershire District Council,31UH,Finance,Revenues,REVS,Redacted - Personal Data,A000133,28/07/2021,1413230,500.00,Test and Trace Grant
North West Leicestershire District Council,31UH,Finance,Revenues,REVS,Redacted - Personal Data,A000133,28/07/2021,1413231,500.00,Test and Trace Grant
North West Leicestershire District Council,31UH,Finance,Exchequer Services,EXCH,Barriers Direct,A042250,28/07/2021,1413228,619.14,Operational Equipment
North West Leicestershire District Council,31UH,Economic Development,Business Focus Group,BFG,Birlea Furniture Limited,A046972,29/07/2021,1413161,45000.00,Business Growth Grant
North West Leicestershire District Council,31UH,Finance,Financial Planning,FINPLA,Blaby District Council,A000180,29/07/2021,1413200,23002.50,Contributions
North West Leicestershire District Council,31UH,Finance,Financial Planning,FINPLA,Blaby District Council,A000180,29/07/2021,1413201,162368.27,Grants
North West Leicestershire District Council,31UH,Legal & Democratic,Legal Services,LDLS,BPP Professional Education,A044626,14/07/2021,1412520,1317.00,Training Expenses
North West Leicestershire District Council,31UH,Property Services,Property Commercial Lettings,PROPCL,British Telecommunications Plc,A000233,07/07/2021,1412340,551.76,Telephones
North West Leicestershire District Council,31UH,Planning & Development,Environment - Town Centre/CCTV,ECCTV,Broadland Guarding Services Ltd,A042635,21/07/2021,1412509,4368.54,Service Contracts
North West Leicestershire District Council,31UH,Finance,Revenues,REVS,Browne Jacobson LLP,A042988,07/07/2021,1412433,484.65,Legal & Professional Services
North West Leicestershire District Council,31UH,Finance,Revenues,REVS,Browne Jacobson LLP,A042988,07/07/2021,1412434,610.00,Legal & Professional Services
North West Leicestershire District Council,31UH,Finance,Revenues,REVS,Browne Jacobson LLP,A042988,14/07/2021,1412680,891.50,Legal & Professional Services
North West Leicestershire District Council,31UH,Finance,Revenues,REVS,Browne Jacobson LLP,A042988,14/07/2021,1412714,875.00,Legal & Professional Services
North West Leicestershire District Council,31UH,Street Management,Environment Parks,ENOP,Buxton's Ltd,A029426,14/07/2021,1412070,640.00,Protective Clothing
North West Leicestershire District Council,31UH,Street Management,Environment Parks,ENOP,Buxton's Ltd,A029426,14/07/2021,1412086,1043.14,Operational Purchases
North West Leicestershire District Council,31UH,Information Technology,ICT Services,ICT,Cable & Wireless Worldwide,A038473,29/07/2021,1413167,1857.36,Admin Equipment - Maintenance
North West Leicestershire District Council,31UH,Information Technology,ICT Services,ICT,Canon UK Ltd,A040459,21/07/2021,1412767,880.27,General Operational Equipment
North West Leicestershire District Council,31UH,Neighbourhoods & Communities,N & C Community Safety,NACCS,Castle Donington Community Library,A046963,29/07/2021,1413014,500.00,Small Grant Scheme
North West Leicestershire District Council,31UH,Leisure & Culture,Sport & Physical Activity,SPA,Castle Donington Parish Council,A000300,14/07/2021,1412510,11055.06,Contributions
North West Leicestershire District Council,31UH,Leisure & Culture,Sport & Physical Activity,SPA,Castle Donington Parish Council,A000300,07/07/2021,1412425,500.00,Test and Trace Grant
North West Leicestershire District Council,31UH,Environment Directorate,Environment - Directorate Support,ENVDS,Cenex Consultancy Services Limited,A046775,07/07/2021,1412417,5387.50,Consultants Fees
North West Leicestershire District Council,31UH,Street Management,Environment Parks,ENOP,Central Construction Services,A004448,07/07/2021,1411783,348.84,Operational Purchases
North West Leicestershire District Council,31UH,Street Management,Environment Transport,ENOT,Certas Energy Uk Ltd,A043448,14/07/2021,1412543,15129.66,Fuel
North West Leicestershire District Council,31UH,Street Management,Environment Transport,ENOT,Certas Energy Uk Ltd,A043448,14/07/2021,1412544,1136.20,Fuel
North West Leicestershire District Council,31UH,Street Management,Environment Transport,ENOT,Certas Energy Uk Ltd,A043448,04/08/2021,1413248,571.67,Fuel
North West Leicestershire District Council,31UH,Economic Development,Business Focus Group,BFG,Charles Blyth & Co Ltd,A043179,29/07/2021,1413153,30000.00,Business Growth Grant
North West Leicestershire District Council,31UH,Neighbourhoods & Communities,N & C Community Safety,NACCS,Charles Booth Centre,A001665,14/07/2021,1412526,250.00,Grants
North West Leicestershire District Council,31UH,Planning & Development,Environment Community Planning,ECP,Clearlead Consulting Ltd,A044888,14/07/2021,1412504,4065.00,Consultants Fees
North West Leicestershire District Council,31UH,Finance,Exchequer Services,EXCH,Click Travel Ltd,A044308,07/07/2021,1412300,2529.16,Travel and Subsistence
North West Leicestershire District Council,31UH,Finance,Exchequer Services,EXCH,Click Travel Ltd,A044308,14/07/2021,1412563,1878.19,Travel and Subsistence
North West Leicestershire District Council,31UH,Finance,Exchequer Services,EXCH,Click Travel Ltd,A044308,21/07/2021,1412743,1990.85,Travel and Subsistence
North West Leicestershire District Council,31UH,Finance,Exchequer Services,EXCH,Click Travel Ltd,A044308,29/07/2021,1413078,2548.28,Travel and Subsistence
North West Leicestershire District Council,31UH,Property Services,Property Commercial Lettings,PROPCL,Coalville Cleaning Services,A003037,07/07/2021,1411727,322.16,Consumable Cleaning Materials/Hygiene
North West Leicestershire District Council,31UH,Property Services,Property Facilities Management,PROPFM,Coalville Cleaning Services,A003037,14/07/2021,1412424,2924.68,Contract Cleaning
North West Leicestershire District Council,31UH,Property Services,Property Commercial Lettings,PROPCL,Coalville Cleaning Services,A003037,14/07/2021,1412243,355.18,Contract Cleaning
North West Leicestershire District Council,31UH,Street Management,Environment - Street Scene,ESS,Coalville Cleaning Services,A003037,29/07/2021,1413210,265.05,Contract Cleaning
North West Leicestershire District Council,31UH,Leisure & Culture,Sport & Physical Activity,SPA,Coalville Education Partnership CEP,A045129,14/07/2021,1412546,600.00,Local Sport Alliance Expenditure
North West Leicestershire District Council,31UH,Finance,Exchequer Services,EXCH,Comensura Limited,A036958,07/07/2021,1412263,31661.13,Agency Staff
North West Leicestershire District Council,31UH,Finance,Exchequer Services,EXCH,Comensura Limited,A036958,07/07/2021,1412473,30244.81,Agency Staff
North West Leicestershire District Council,31UH,Finance,Exchequer Services,EXCH,Comensura Limited,A036958,14/07/2021,1412685,22872.82,Agency Staff
North West Leicestershire District Council,31UH,Finance,Exchequer Services,EXCH,Comensura Limited,A036958,29/07/2021,1412996,26532.97,Agency Staff
North West Leicestershire District Council,31UH,Finance,Exchequer Services,EXCH,Comensura Limited,A036958,29/07/2021,1413170,24576.47,Agency Staff
North West Leicestershire District Council,31UH,Legal & Democratic,Legal Services,LDLS,Cornerstone Barristers,A039753,14/07/2021,1412564,2500.00,Legal & Professional Services
North West Leicestershire District Council,31UH,Planning & Development,Environment - Development Control,EDC,CR Gilman,A046937,14/07/2021,1412466,600.00,River Mease Expenditure
North West Leicestershire District Council,31UH,Housing Repairs,HRA Housing Repairs & Maintenance,HRAHRM,Ctrack Ltd,A045628,21/07/2021,1412785,1576.80,Vehicle and Transport Costs
North West Leicestershire District Council,31UH,Legal & Democratic,Civic Expenses,LDCE,Cuckoo Gap Limited,A000438,07/07/2021,1411152,1491.06,Signs & Notices
North West Leicestershire District Council,31UH,Street Management,Environment Transport,ENOT,Cuckoo Gap Limited,A000438,14/07/2021,1412235,414.70,Operational Equipment - Rep & Maint
North West Leicestershire District Council,31UH,Information Technology,ICT Services,ICT,Cuttlefish Multimedia Ltd,A032102,07/07/2021,1412282,1718.33,Website Maintenance
North West Leicestershire District Council,31UH,Property Services,Property Facilities Management,PROPFM,D & G Security Systems Ltd,A046874,21/07/2021,1412784,3640.00,Asset Protection
North West Leicestershire District Council,31UH,Leisure & Culture,Cultural Services Arts & Events,CULTEV,D Walker,A038828,14/07/2021,1412418,460.00,N.W.L. Arts Festival
North West Leicestershire District Council,31UH,Leisure & Culture,Cultural Services Arts & Events,CULTEV,D Walker,A038828,14/07/2021,1412419,345.00,N.W.L. Arts Festival
North West Leicestershire District Council,31UH,Leisure & Culture,Cultural Services Arts & Events,CULTEV,D Walker,A038828,29/07/2021,1412727,318.00,N.W.L. Arts Festival
North West Leicestershire District Council,31UH,Street Management,Environment - Street Scene,ESS,Davis Coleman Limited,A045942,04/08/2021,1413294,360.00,Legal & Professional Services
North West Leicestershire District Council,31UH,Street Management,Environment Transport,ENOT,Dennis Eagle Limited,A000522,14/07/2021,1412568,287.50,Scheduled Servicing - Parts
North West Leicestershire District Council,31UH,Finance,Financial Planning,FINPLA,Department for Communities & Local Government,A028518,07/07/2021,1412475,148381.32,Subsidy Receipts & Repayments
North West Leicestershire District Council,31UH,Finance,Financial Planning,FINPLA,Department for Communities & Local Government,A028518,07/07/2021,1412481,2796462.00,Subsidy Receipts & Repayments
North West Leicestershire District Council,31UH,Street Management,Environment - Street Scene,ESS,Derby City Council,A042168,21/07/2021,1412765,790.00,Subscriptions
North West Leicestershire District Council,31UH,Finance,Exchequer Services,EXCH,Digicert,A042250,28/07/2021,1413229,1205.39,Software Licenses
North West Leicestershire District Council,31UH,Street Management,Environment Transport,ENOT,Digraph Transport Supplies Ltd,A000486,14/07/2021,1412241,3304.80,Consumable Materials
North West Leicestershire District Council,31UH,Economic Development,Business Focus Group,BFG,Dixons Pharmaceuticals Ltd,A033982,29/07/2021,1413155,24274.00,Business Growth Grant
North West Leicestershire District Council,31UH,Housing Repairs,HRA Housing Repairs & Maintenance,HRAHRM,Dodd Group (Midlands) Limited,A036692,21/07/2021,1412741,17260.51,Electrical
North West Leicestershire District Council,31UH,Housing Repairs,HRA Housing Repairs & Maintenance,HRAHRM,Dodd Group (Midlands) Limited,A036692,21/07/2021,1412742,12114.44,Electrical
North West Leicestershire District Council,31UH,Finance,Exchequer Services,EXCH,DVLA,A042250,28/07/2021,1413228,1192.50,Vehicle Tax Licenses
North West Leicestershire District Council,31UH,Housing,HRA Housing Management,HRAHM,E.on,A000528,29/07/2021,1413021,837.92,Electricity
North West Leicestershire District Council,31UH,Housing,HRA Housing Management,HRAHM,ECO Skip Hire Ltd,A041559,07/07/2021,1412258,475.00,Routine Ground Maintenance
North West Leicestershire District Council,31UH,Chief Exec,Chief Executive,CHEX,Ecus Ltd,A044014,14/07/2021,1412691,645.00,Consultants Fees
North West Leicestershire District Council,31UH,Planning & Development,Environment - Development Control,EDC,Edenvale Young,A045845,29/07/2021,1413033,5300.00,River Mease Expenditure
North West Leicestershire District Council,31UH,Chief Exec,Chief Executive,CHEX,Edwards & Edwards Consultancy Ltd,A041694,14/07/2021,1412688,961.50,Consultants Fees
North West Leicestershire District Council,31UH,Chief Exec,Chief Executive,CHEX,Edwards & Edwards Consultancy Ltd,A041694,14/07/2021,1412689,1040.00,Legal & Professional Services
North West Leicestershire District Council,31UH,Information Technology,ICT Services,ICT,EE Ltd (Airtime),A018592,14/07/2021,1412528,4765.28,Mobile Telephones
North West Leicestershire District Council,31UH,Information Technology,ICT Services,ICT,EE Ltd (Airtime),A018592,14/07/2021,1412529,2313.34,Mobile Telephones
North West Leicestershire District Council,31UH,Leisure & Culture,Sport & Physical Activity,SPA,Elite Training Solutions,A042233,07/07/2021,1412276,500.00,EFAW Course
North West Leicestershire District Council,31UH,Leisure & Culture,Sport & Physical Activity,SPA,Elliott Group Limited,A005413,07/07/2021,1412277,505.72,Secure Storage and Portable Accomodation
North West Leicestershire District Council,31UH,Housing Repairs,HRA Housing Repairs & Maintenance,HRAHRM,Emperor Scaffolding Limited,A038405,07/07/2021,1412441,2000.00,Hire Of Operational Equipment
North West Leicestershire District Council,31UH,Housing Repairs,HRA Housing Repairs & Maintenance,HRAHRM,Emperor Scaffolding Limited,A038405,29/07/2021,1413044,2380.00,Hire Of Operational Equipment
North West Leicestershire District Council,31UH,Housing Repairs,HRA Housing Repairs & Maintenance,HRAHRM,Emperor Scaffolding Limited,A038405,29/07/2021,1413045,2560.00,Hire Of Operational Equipment
North West Leicestershire District Council,31UH,Housing Repairs,HRA Housing Repairs & Maintenance,HRAHRM,Emperor Scaffolding Limited,A038405,29/07/2021,1413047,1380.00,Hire Of Operational Equipment
North West Leicestershire District Council,31UH,Housing Repairs,HRA Housing Repairs & Maintenance,HRAHRM,Emperor Scaffolding Limited,A038405,29/07/2021,1413048,385.00,Hire Of Operational Equipment
North West Leicestershire District Council,31UH,Housing Repairs,HRA Housing Repairs & Maintenance,HRAHRM,Emperor Scaffolding Limited,A038405,29/07/2021,1413050,960.00,Hire Of Operational Equipment
North West Leicestershire District Council,31UH,Housing Repairs,HRA Housing Repairs & Maintenance,HRAHRM,Emperor Scaffolding Limited,A038405,29/07/2021,1413052,300.00,Hire Of Operational Equipment
North West Leicestershire District Council,31UH,Housing Repairs,HRA Housing Repairs & Maintenance,HRAHRM,Emperor Scaffolding Limited,A038405,29/07/2021,1413053,9030.00,Hire Of Operational Equipment
North West Leicestershire District Council,31UH,Housing Repairs,HRA Housing Repairs & Maintenance,HRAHRM,Emperor Scaffolding Limited,A038405,29/07/2021,1413061,760.00,Hire Of Operational Equipment
North West Leicestershire District Council,31UH,Housing Repairs,HRA Housing Repairs & Maintenance,HRAHRM,Emperor Scaffolding Limited,A038405,29/07/2021,1413062,300.00,Hire Of Operational Equipment
North West Leicestershire District Council,31UH,Housing Repairs,HRA Housing Repairs & Maintenance,HRAHRM,Emperor Scaffolding Limited,A038405,29/07/2021,1413070,880.00,Hire Of Operational Equipment
North West Leicestershire District Council,31UH,Street Management,Environment - Street Scene,ESS,Enforcement Services Ltd,A030894,21/07/2021,1412724,1610.00,Legal & Professional Services
North West Leicestershire District Council,31UH,Street Management,Environment Transport,ENOT,Enterprise Flex-E-Rent,A046516,14/07/2021,1412715,5156.09,Hire Of Transport
North West Leicestershire District Council,31UH,Street Management,Environment Transport,ENOT,Enterprise Flex-E-Rent,A046516,29/07/2021,1413006,403.49,Non Insurance Damage
North West Leicestershire District Council,31UH,Street Management,Environment Waste Management,ENOWM,Environment Media Group Ltd,A045305,29/07/2021,1413179,560.00,Subscriptions
North West Leicestershire District Council,31UH,Street Management,Environment Waste Management,ENOWM,ESE World Limited,A001253,29/07/2021,1413027,577.00,General Materials
North West Leicestershire District Council,31UH,Street Management,Environment Transport,ENOT,ESPO,A000958,14/07/2021,1412525,307.90,Operational Purchases
North West Leicestershire District Council,31UH,Finance,Exchequer Services,EXCH,ESPO,A000958,22/07/2021,1412945,7791.38,Gas
North West Leicestershire District Council,31UH,Housing Repairs,HRA Housing Repairs & Maintenance,HRAHRM,European Asbestos Services Ltd,A045507,29/07/2021,1413233,2188.34,Contract Payments (Dws) Ext
North West Leicestershire District Council,31UH,Leisure & Culture,Cultural Services Arts & Events,CULTEV,Everyone Active,A045678,29/07/2021,1412036,605.00,Recreation & Play Areas
North West Leicestershire District Council,31UH,Chief Exec,Chief Executive,CHEX,exi,A045557,29/07/2021,1413043,1300.00,Consultants Fees
North West Leicestershire District Council,31UH,Corporate Director,Corporate Director,CORDI,exi,A045557,04/08/2021,1413392,4225.00,Consultants Fees
North West Leicestershire District Council,31UH,Corporate Director,Corporate Director,CORDI,exi,A045557,04/08/2021,1413393,4225.00,Consultants Fees
North West Leicestershire District Council,31UH,Economic Development,Business Focus Group,BFG,FC Cartons Limited,A046971,29/07/2021,1413160,30000.00,Business Growth Grant
North West Leicestershire District Council,31UH,Property Services,Property Commercial Lettings,PROPCL,FHP Property Consultants,A045928,29/07/2021,1411756,2450.00,Legal & Professional Services
North West Leicestershire District Council,31UH,Economic Development,Business Focus Group,BFG,Fitness Republic Ashby Ltd,A046960,29/07/2021,1413015,960.00,Small Grant Scheme
North West Leicestershire District Council,31UH,Leisure & Culture,Cultural Services Arts & Events,CULTEV,Fleckney Group Ltd,A046929,28/07/2021,1413220,11250.00,Event Expenditure
North West Leicestershire District Council,31UH,Information Technology,ICT Services,ICT,Freedom Communications (UK) Ltd,A032826,14/07/2021,1412551,510.40,C.O. - Call Charges
North West Leicestershire District Council,31UH,Information Technology,ICT Services,ICT,Freedom Communications (UK) Ltd,A032826,29/07/2021,1412965,4050.00,Contract Payments (Other) Ext
North West Leicestershire District Council,31UH,Finance,Revenues,REVS,Freeths LLP,A038047,07/07/2021,1412432,1614.50,Advertising
North West Leicestershire District Council,31UH,Planning & Development,Environment Planning Policy,EPP,Gillespies LLP,A045048,21/07/2021,1412725,5994.24,Legal & Professional Services
North West Leicestershire District Council,31UH,Street Management,Environment - Street Scene,ESS,Gilvar Lining Ltd,A040848,14/07/2021,1412497,940.00,Routine Ground Maintenance
North West Leicestershire District Council,31UH,Economic Development,Business Focus Group,BFG,GL Events UK Limited,A046970,29/07/2021,1413158,17700.00,Business Growth Grant
North West Leicestershire District Council,31UH,Street Management,Environment Parks,ENOP,Glasdon UK Ltd,A000671,21/07/2021,1412597,303.06,Operational Purchases
North West Leicestershire District Council,31UH,Property Services,Property Facilities Management,PROPFM,Gleam Team Services Limited,A000129,07/07/2021,1412330,350.00,Service Contracts - Premises costs
North West Leicestershire District Council,31UH,Street Management,Environment - Street Scene,ESS,Groundsman Tools & Supplies LLP,A030744,14/07/2021,1412266,270.00,Operational Equipment
North West Leicestershire District Council,31UH,Street Management,Environment Waste Management,ENOWM,Groundsman Tools & Supplies LLP,A030744,21/07/2021,1412599,945.00,Operational Equipment
North West Leicestershire District Council,31UH,Street Management,Environment - Street Scene,ESS,Groundsman Tools & Supplies LLP,A030744,21/07/2021,1411892,308.00,Operational Equipment
North West Leicestershire District Council,31UH,Street Management,Environment Parks,ENOP,Groundsman Tools & Supplies LLP,A030744,21/07/2021,1412593,1032.85,Operational Purchases
North West Leicestershire District Council,31UH,Street Management,Environment - Street Scene,ESS,Groundsman Tools & Supplies LLP,A030744,29/07/2021,1412777,550.00,Operational Equipment
North West Leicestershire District Council,31UH,Finance,Exchequer Services,EXCH,H M Land Registry,A000713,28/07/2021,1413234,283.00,Town Centre & Area Regeneration - Initia
North West Leicestershire District Council,31UH,Corporate Director,Human Resources,HR,Halfords,A028298,14/07/2021,1412502,633.33,Operational Equipment
North West Leicestershire District Council,31UH,Street Management,Environment - Street Scene,ESS,Harborough District Council,A008631,14/07/2021,1412616,5961.26,Contaminated Land Officer
North West Leicestershire District Council,31UH,Corporate Director,Human Resources,HR,Health Management Ltd,A038840,14/07/2021,1412690,739.50,Medical Fees
North West Leicestershire District Council,31UH,Economic Development,Business Focus Group,BFG,Health Workshop Ltd,A046941,07/07/2021,1412465,1000.00,Digital Growth Grant
North West Leicestershire District Council,31UH,Finance,Exchequer Services,EXCH,Helix,A042250,28/07/2021,1413228,299.00,Training Expenses
North West Leicestershire District Council,31UH,Street Management,Environment Transport,ENOT,HGV Direct Ltd,A046956,29/07/2021,1412970,299.95,Operational Equipment
North West Leicestershire District Council,31UH,Street Management,Environment Transport,ENOT,HGV Direct Ltd,A046956,29/07/2021,1412973,265.00,Repairs - Parts
North West Leicestershire District Council,31UH,Street Management,Environment Transport,ENOT,HGV Direct Ltd,A046956,29/07/2021,1413205,305.94,Scheduled Servicing - Parts
North West Leicestershire District Council,31UH,Street Management,Environment Transport,ENOT,Higgott,A000764,14/07/2021,1412589,331.73,Repairs - Parts
North West Leicestershire District Council,31UH,Housing,HRA Performance & Business Support,HRAPBS,Hinckley & Bosworth Borough Council,A000770,04/08/2021,1413429,4200.00,Grants
North West Leicestershire District Council,31UH,Finance,Exchequer Services,EXCH,HM Revenues & Customs,A038465,14/07/2021,1412517,3799.50,Payment To Inland Revenue
North West Leicestershire District Council,31UH,Finance,Exchequer Services,EXCH,HM Revenues & Customs,A038465,14/07/2021,1412561,576.00,Payment To Inland Revenue
North West Leicestershire District Council,31UH,Legal & Democratic,Legal Services,LDLS,Hoey Ainscough Associates Ltd,A046948,14/07/2021,1412527,600.00,Legal & Professional Services
North West Leicestershire District Council,31UH,Housing,HRA Housing Management,HRAHM,Housing Partners Ltd,A033400,07/07/2021,1411716,6607.00,Legal & Professional Services
North West Leicestershire District Council,31UH,Finance,Financial Planning,FINPLA,HQN Ltd,A007983,29/07/2021,1411353,820.00,Subscriptions
North West Leicestershire District Council,31UH,Economic Development,Business Focus Group,BFG,I Lockwood & H Foster Consultancy,A046901,21/07/2021,1412722,637.50,Consultants Fees
North West Leicestershire District Council,31UH,Information Technology,ICT Services,ICT,Idox Software Ltd,A034157,07/07/2021,1412234,475.00,Administrative Equipment
North West Leicestershire District Council,31UH,Planning & Development,Environment - Development Control,EDC,Ilex Tree Services,A046556,07/07/2021,1412311,1782.00,External Legal Fees & Advice
North West Leicestershire District Council,31UH,Planning & Development,Environment - Development Control,EDC,Ilex Tree Services,A046556,14/07/2021,1412562,1239.00,External Legal Fees & Advice
North West Leicestershire District Council,31UH,Finance,Exchequer Services,EXCH,Insight Uk,A021505,07/07/2021,1412327,5301.37,Computing
North West Leicestershire District Council,31UH,Finance,Financial Planning,FINPLA,Insight Uk,A021505,14/07/2021,1412067,3339.84,Computing
North West Leicestershire District Council,31UH,Planning & Development,Environment Planning Policy,EPP,Intelligent Plan and Examinations,A045250,14/07/2021,1412682,5383.50,Consultants Fees
North West Leicestershire District Council,31UH,Street Management,Environment - Street Scene,ESS,Ivy Legal Limited,A046810,14/07/2021,1412501,8963.00,Legal & Professional Services
North West Leicestershire District Council,31UH,Street Management,Environment Transport,ENOT,J F Lloyd & Sons,A000991,07/07/2021,1412247,250.00,Hire Of Operational Equipment
North West Leicestershire District Council,31UH,Street Management,Environment Transport,ENOT,J F Lloyd & Sons,A000991,14/07/2021,1412694,330.00,Hire Of Operational Equipment
North West Leicestershire District Council,31UH,Street Management,Environment Transport,ENOT,J F Lloyd & Sons,A000991,14/07/2021,1412695,330.00,Hire Of Operational Equipment
North West Leicestershire District Council,31UH,Street Management,Environment Transport,ENOT,J F Lloyd & Sons,A000991,29/07/2021,1413204,330.00,Hire Of Operational Equipment
North West Leicestershire District Council,31UH,Housing,HRA Housing Management,HRAHM,James Andrews Recruitment Solutions,A036290,29/07/2021,1413036,299.00,Agency Staff
North West Leicestershire District Council,31UH,Housing,HRA Housing Management,HRAHM,James Andrews Recruitment Solutions,A036290,29/07/2021,1413073,340.86,Agency Staff
North West Leicestershire District Council,31UH,Housing,HRA Housing Management,HRAHM,James Andrews Recruitment Solutions,A036290,29/07/2021,1413074,346.84,Agency Staff
North West Leicestershire District Council,31UH,Housing,HRA Housing Management,HRAHM,James Andrews Recruitment Solutions,A036290,29/07/2021,1413075,890.08,Agency Staff
North West Leicestershire District Council,31UH,Housing,HRA Housing Management,HRAHM,James Andrews Recruitment Solutions,A036290,29/07/2021,1413214,388.70,Agency Staff
North West Leicestershire District Council,31UH,Housing,HRA Housing Management,HRAHM,James Andrews Recruitment Solutions,A036290,29/07/2021,1413215,855.14,Agency Staff
North West Leicestershire District Council,31UH,Street Management,Environment - Street Scene,ESS,Janus Ridgeway Ltd,A046737,21/07/2021,1412825,3370.02,Contract Payments (Other) Ext
North West Leicestershire District Council,31UH,Street Management,Environment Parks,ENOP,JB Tool Hire Ltd,A011490,04/08/2021,1413293,273.00,Operational Purchases
North West Leicestershire District Council,31UH,Planning & Development,Environment - Development Control,EDC,Jeremy Benn Associates Ltd (t/a JBA Consulting),A044010,14/07/2021,1412513,1985.00,River Mease Expenditure
North West Leicestershire District Council,31UH,Housing,HRA Housing Management,HRAHM,JLA Limited,A043639,07/07/2021,1412270,427.84,Cleaning & Domestic Equipment
North West Leicestershire District Council,31UH,Housing,HRA Housing Management,HRAHM,JLA Limited,A043639,07/07/2021,1412338,282.00,Cleaning & Domestic Equipment
North West Leicestershire District Council,31UH,Housing,HRA Housing Management,HRAHM,JLA Limited,A043639,07/07/2021,1412339,412.00,Cleaning & Domestic Equipment
North West Leicestershire District Council,31UH,Housing,HRA Housing Management,HRAHM,JLA Limited,A043639,21/07/2021,1412823,302.00,Cleaning & Domestic Equipment
North West Leicestershire District Council,31UH,Housing,HRA Housing Management,HRAHM,JLA Limited,A043639,29/07/2021,1413041,442.00,Cleaning & Domestic Equipment
North West Leicestershire District Council,31UH,Housing,HRA Housing Management,HRAHM,JLA Limited,A043639,29/07/2021,1413163,282.00,Cleaning & Domestic Equipment
North West Leicestershire District Council,31UH,Property Services,Property Facilities Management,PROPFM,John Merison BMC Ltd,A001092,21/07/2021,1412723,1315.35,Contract Payments (Other) Ext
North West Leicestershire District Council,31UH,Property Services,Property Commercial Lettings,PROPCL,John Merison BMC Ltd,A001092,21/07/2021,1411758,1685.50,General Repairs
North West Leicestershire District Council,31UH,Street Management,Environment - Street Scene,ESS,John Merison BMC Ltd,A001092,21/07/2021,1412756,300.00,General Repairs
North West Leicestershire District Council,31UH,Housing Repairs,HRA Housing Repairs & Maintenance,HRAHRM,John Merison BMC Ltd,A001092,07/07/2021,1412442,1099.86,Contract Payments (Dws) Ext
North West Leicestershire District Council,31UH,Housing Repairs,HRA Housing Repairs & Maintenance,HRAHRM,John Merison BMC Ltd,A001092,07/07/2021,1412449,1837.59,Contract Payments (Dws) Ext
North West Leicestershire District Council,31UH,Housing Repairs,HRA Housing Repairs & Maintenance,HRAHRM,John Merison BMC Ltd,A001092,07/07/2021,1412451,2035.00,Contract Payments (Dws) Ext
North West Leicestershire District Council,31UH,Housing Repairs,HRA Housing Repairs & Maintenance,HRAHRM,John Merison BMC Ltd,A001092,29/07/2021,1413064,1799.38,Contract Payments (Dws) Ext
North West Leicestershire District Council,31UH,Housing Repairs,HRA Housing Repairs & Maintenance,HRAHRM,John Merison BMC Ltd,A001092,29/07/2021,1413068,5401.64,Contract Payments (Dws) Ext
North West Leicestershire District Council,31UH,Economic Development,Business Focus Group,BFG,Keeday Leisure Equipment Ltd,A034657,29/07/2021,1413149,60000.00,Business Growth Grant
North West Leicestershire District Council,31UH,Finance,Financial Planning,FINPLA,Kegworth Parish Council,A000882,21/07/2021,1412844,57502.45,Precept
North West Leicestershire District Council,31UH,Street Management,Environment Parks,ENOP,Keith Cook Training Services,A027792,07/07/2021,1412033,450.00,Training Expenses
North West Leicestershire District Council,31UH,Street Management,Environment Parks,ENOP,Keith Cook Training Services,A027792,14/07/2021,1412600,528.00,Training Expenses
North West Leicestershire District Council,31UH,Street Management,Environment Parks,ENOP,Kernock Park Plants,A037084,07/07/2021,1411754,1650.00,Operational Purchases
North West Leicestershire District Council,31UH,Street Management,Environment Parks,ENOP,Kernock Park Plants,A037084,07/07/2021,1411755,2350.00,Operational Purchases
North West Leicestershire District Council,31UH,Economic Development,Business Focus Group,BFG,Redacted - Personal Data,A046962,29/07/2021,1413016,633.32,Digital Growth Grant
North West Leicestershire District Council,31UH,Housing Repairs,HRA Housing Repairs & Maintenance,HRAHRM,Laker BMS Ltd,A031787,07/07/2021,1412446,663.75,Plumbing & Heating
North West Leicestershire District Council,31UH,Housing Repairs,HRA Housing Repairs & Maintenance,HRAHRM,Laker BMS Ltd,A031787,07/07/2021,1412447,3666.00,Plumbing & Heating
North West Leicestershire District Council,31UH,Housing Repairs,HRA Housing Repairs & Maintenance,HRAHRM,Laker BMS Ltd,A031787,07/07/2021,1412448,6436.24,Contract Payments (Dws) Ext
North West Leicestershire District Council,31UH,Housing Repairs,HRA Housing Repairs & Maintenance,HRAHRM,Laker BMS Ltd,A031787,07/07/2021,1412452,2746.18,Contract Payments (Dws) Ext
North West Leicestershire District Council,31UH,Housing Repairs,HRA Housing Repairs & Maintenance,HRAHRM,Laker BMS Ltd,A031787,07/07/2021,1412453,1429.33,Contract Payments (Dws) Ext
North West Leicestershire District Council,31UH,Housing Repairs,HRA Housing Repairs & Maintenance,HRAHRM,Laker BMS Ltd,A031787,07/07/2021,1412454,5826.16,Contract Payments (Dws) Ext
North West Leicestershire District Council,31UH,Housing Repairs,HRA Housing Repairs & Maintenance,HRAHRM,Laker BMS Ltd,A031787,07/07/2021,1412455,2413.16,Contract Payments (Dws) Ext
North West Leicestershire District Council,31UH,Housing Repairs,HRA Housing Repairs & Maintenance,HRAHRM,Laker BMS Ltd,A031787,07/07/2021,1412456,3377.24,Contract Payments (Dws) Ext
North West Leicestershire District Council,31UH,Housing Repairs,HRA Housing Repairs & Maintenance,HRAHRM,Laker BMS Ltd,A031787,07/07/2021,1412457,7541.95,Contract Payments (Dws) Ext
North West Leicestershire District Council,31UH,Housing Repairs,HRA Housing Repairs & Maintenance,HRAHRM,Laker BMS Ltd,A031787,07/07/2021,1412458,4999.07,Plumbing & Heating
North West Leicestershire District Council,31UH,Housing Repairs,HRA Housing Repairs & Maintenance,HRAHRM,Laker BMS Ltd,A031787,29/07/2021,1413058,1218.25,Plumbing & Heating
North West Leicestershire District Council,31UH,Housing Repairs,HRA Housing Repairs & Maintenance,HRAHRM,Laker BMS Ltd,A031787,29/07/2021,1413065,5334.77,Contract Payments (Dws) Ext
North West Leicestershire District Council,31UH,Housing Repairs,HRA Housing Repairs & Maintenance,HRAHRM,Laker BMS Ltd,A031787,29/07/2021,1413066,554.50,Plumbing & Heating
North West Leicestershire District Council,31UH,Street Management,Environment Parks,ENOP,Landscape Supply Company,A041669,21/07/2021,1412549,828.00,Operational Purchases
North West Leicestershire District Council,31UH,Economic Development,Business Focus Group,BFG,Redacted - Personal Data,A046945,07/07/2021,1412472,1000.00,Digital Growth Grant
North West Leicestershire District Council,31UH,Finance,Financial Planning,FINPLA,"Leicester, Leicestershire & Rutland Combined Fire Authority",A028339,07/07/2021,1412483,238579.00,Precept
North West Leicestershire District Council,31UH,Housing Repairs,HRA Housing Repairs & Maintenance,HRAHRM,Leicestershire County Council,A000950,07/07/2021,1412301,4738.18,Tipping Charges
North West Leicestershire District Council,31UH,Finance,Financial Planning,FINPLA,Leicestershire County Council,A000950,07/07/2021,1412482,4859265.00,Precept
North West Leicestershire District Council,31UH,Finance,Financial Planning,FINPLA,Leicestershire County Council,A000950,07/07/2021,1412485,2290309.00,Precept
North West Leicestershire District Council,31UH,Chief Exec,Chief Executive,CHEX,Local Government Association,A002189,14/07/2021,1411465,379.00,Training Expenses
North West Leicestershire District Council,31UH,Chief Exec,Chief Executive,CHEX,Local Government Association,A002189,21/07/2021,1412845,379.00,Training Expenses
North West Leicestershire District Council,31UH,Finance,Financial Planning,FINPLA,Macildowie Associates Ltd,A046022,07/07/2021,1412259,2007.16,Agency Staff
North West Leicestershire District Council,31UH,Finance,Financial Planning,FINPLA,Macildowie Associates Ltd,A046022,07/07/2021,1412469,1576.50,Agency Staff
North West Leicestershire District Council,31UH,Finance,Financial Planning,FINPLA,Macildowie Associates Ltd,A046022,14/07/2021,1412717,1619.79,Agency Staff
North West Leicestershire District Council,31UH,Neighbourhoods & Communities,N & C Neighbourhoods,NACN,Marlborough Square Methodist Church,A001044,29/07/2021,1413216,440.00,Covid Support Grant
North West Leicestershire District Council,31UH,Housing,HRA Performance & Business Support,HRAPBS,Marsh Limited,A042169,29/07/2021,1412964,10712.63,Insurance - Tenants Contributions
North West Leicestershire District Council,31UH,Housing Repairs,HRA Housing Repairs & Maintenance,HRAHRM,McHale Contracts & Plant Environmental LLP,A046696,14/07/2021,1412539,3055.92,Surveying
North West Leicestershire District Council,31UH,Housing Repairs,HRA Housing Repairs & Maintenance,HRAHRM,McHale Contracts & Plant Environmental LLP,A046696,14/07/2021,1412540,972.99,Surveying
North West Leicestershire District Council,31UH,Housing Repairs,HRA Housing Repairs & Maintenance,HRAHRM,McHale Contracts & Plant Environmental LLP,A046696,21/07/2021,1412794,808.60,Surveying
North West Leicestershire District Council,31UH,Street Management,Environment Parks,ENOP,Meon Ltd,A045777,29/07/2021,1412828,333.62,Operational Purchases
North West Leicestershire District Council,31UH,Street Management,Environment Transport,ENOT,Mertrux Ltd,A035291,14/07/2021,1412060,280.29,Repairs - Parts
North West Leicestershire District Council,31UH,Street Management,Environment Transport,ENOT,Mertrux Ltd,A035291,14/07/2021,1412569,1370.17,Repairs - Parts
North West Leicestershire District Council,31UH,Street Management,Environment Transport,ENOT,Mertrux Ltd,A035291,29/07/2021,1412978,424.00,Repairs - Labour
North West Leicestershire District Council,31UH,Street Management,Environment - Street Scene,ESS,Metric Group Ltd (Repairs),A036055,14/07/2021,1411236,387.21,Operational Equipment
North West Leicestershire District Council,31UH,Street Management,Environment - Street Scene,ESS,Metric Group Ltd (Repairs),A036055,14/07/2021,1412507,670.84,Operational Equipment
North West Leicestershire District Council,31UH,Street Management,Environment - Street Scene,ESS,Metric Group Ltd (Repairs),A036055,29/07/2021,1411481,503.00,Operational Equipment
North West Leicestershire District Council,31UH,Street Management,Environment - Street Scene,ESS,Metric Group Ltd (Repairs),A036055,29/07/2021,1411482,399.05,Operational Equipment
North West Leicestershire District Council,31UH,Economic Development,Business Focus Group,BFG,Mewies Engineering Consultants Ltd,A043524,29/07/2021,1413159,30306.00,Consultants Fees
North West Leicestershire District Council,31UH,Finance,Exchequer Services,EXCH,MHR International UK Ltd,A045150,07/07/2021,1412492,3960.00,Consultants Fees
North West Leicestershire District Council,31UH,Housing Repairs,HRA Housing Repairs & Maintenance,HRAHRM,Michael Dyson Associates Ltd,A028431,07/07/2021,1412278,252.00,Consultants Fees
North West Leicestershire District Council,31UH,Housing Repairs,HRA Housing Repairs & Maintenance,HRAHRM,Michael Dyson Associates Ltd,A028431,07/07/2021,1412280,483.00,Legal & Professional Services
North West Leicestershire District Council,31UH,Housing Repairs,HRA Housing Repairs & Maintenance,HRAHRM,Michael Dyson Associates Ltd,A028431,14/07/2021,1411357,550.00,Legal & Professional Services
North West Leicestershire District Council,31UH,Housing Repairs,HRA Housing Repairs & Maintenance,HRAHRM,Michael Dyson Associates Ltd,A028431,14/07/2021,1412279,550.00,Legal & Professional Services
North West Leicestershire District Council,31UH,Housing Repairs,HRA Housing Repairs & Maintenance,HRAHRM,Michael Dyson Associates Ltd,A028431,04/08/2021,1413390,550.00,Legal & Professional Services
North West Leicestershire District Council,31UH,Housing Repairs,HRA Housing Repairs & Maintenance,HRAHRM,Michael Dyson Associates Ltd,A028431,04/08/2021,1413391,483.00,Legal & Professional Services
North West Leicestershire District Council,31UH,Finance,Financial Planning,FINPLA,Michael Page International Recruitment Ltd,A041893,21/07/2021,1412770,3990.00,Agency Staff
North West Leicestershire District Council,31UH,Street Management,Environment Transport,ENOT,Michelin Tyre Plc,A046127,14/07/2021,1412570,293.32,Transport Costs - Tyres
North West Leicestershire District Council,31UH,Street Management,Environment - Street Scene,ESS,Midlands Co-operative  Ltd,A036454,21/07/2021,1412236,500.00,Welfare Funerals
North West Leicestershire District Council,31UH,Street Management,Environment - Street Scene,ESS,Midlands Co-operative  Ltd,A036454,29/07/2021,1413030,500.00,Welfare Funerals
North West Leicestershire District Council,31UH,Property Services,Property Facilities Management,PROPFM,Moira Furnace Museum Trust Ltd,A001136,07/07/2021,1412281,531.75,Contract Cleaning
North West Leicestershire District Council,31UH,Leisure & Culture,Cultural Services Arts & Events,CULTEV,Moira Furnace Museum Trust Ltd,A001136,14/07/2021,1412464,18800.00,Grants
North West Leicestershire District Council,31UH,Finance,Financial Planning,FINPLA,Moore Stephens Insight Ltd,A045967,07/07/2021,1412410,400.00,Computing
North West Leicestershire District Council,31UH,Finance,Financial Planning,FINPLA,Moore Stephens Insight Ltd,A045967,21/07/2021,1412835,1890.00,Computing
North West Leicestershire District Council,31UH,Housing Repairs,HRA Housing Repairs & Maintenance,HRAHRM,Morgan Lambert Limited,A045162,21/07/2021,1412768,678.30,Servicing
North West Leicestershire District Council,31UH,Housing Repairs,HRA Housing Repairs & Maintenance,HRAHRM,Morgan Lambert Limited,A045162,21/07/2021,1412911,997.50,Servicing
North West Leicestershire District Council,31UH,Housing,HRA Housing Management,HRAHM,Redacted - Personal Data,A046954,14/07/2021,1412712,250.00,Compensation
North West Leicestershire District Council,31UH,Housing Strategy,Community - Housing Strategy,HS,MRC Community Action,A001208,07/07/2021,1412048,420.00,Homelessness Prevention
North West Leicestershire District Council,31UH,Housing,HRA Housing Management,HRAHM,MRC Community Action,A001208,07/07/2021,1412049,334.00,HRA Hardship Fund
North West Leicestershire District Council,31UH,Neighbourhoods & Communities,N & C Community Safety,NACCS,MRC Community Action,A001208,14/07/2021,1412530,1824.00,Homelessness Prevention
North West Leicestershire District Council,31UH,Housing,HRA Housing Management,HRAHM,Redacted - Personal Data,A046974,29/07/2021,1413164,300.00,Compensation
North West Leicestershire District Council,31UH,Housing,HRA Housing Management,HRAHM,Redacted - Personal Data,A027372,14/07/2021,1412711,970.00,Compensation
North West Leicestershire District Council,31UH,Legal & Democratic,Legal Services,LDLS,Redacted - Personal Data,A039332,21/07/2021,1412795,1500.00,Town Centre & Area Regeneration - Initia
North West Leicestershire District Council,31UH,Information Technology,ICT Services,ICT,Nominet UK,A046776,21/07/2021,1412850,765.94,Admin Equipment - Maintenance
North West Leicestershire District Council,31UH,Chief Exec,Chief Executive,CHEX,Nottingham City Council,A041558,07/07/2021,1412242,5375.00,Subscriptions
North West Leicestershire District Council,31UH,Economic Development,Business Focus Group,BFG,NS Engineering Ltd,A046969,29/07/2021,1413157,22500.00,Business Growth Grant
North West Leicestershire District Council,31UH,Housing,HRA Performance & Business Support,HRAPBS,NWA Social & Market Research Limited,A037146,29/07/2021,1413193,5975.00,Housing Healthcheck Recomendations
North West Leicestershire District Council,31UH,Street Management,Environment Transport,ENOT,O Kay Engineering Services Ltd,A041943,07/07/2021,1412420,1215.00,Operational Equipment
North West Leicestershire District Council,31UH,Street Management,Environment Transport,ENOT,O Kay Engineering Services Ltd,A041943,07/07/2021,1412422,625.00,Service Contracts
North West Leicestershire District Council,31UH,Street Management,Environment Waste Management,ENOWM,One51 ES Plastics(UK) Ltd  t/a MGB Plastics,A044595,07/07/2021,1412423,10800.00,General Materials
North West Leicestershire District Council,31UH,Street Management,Environment Waste Management,ENOWM,One51 ES Plastics(UK) Ltd  t/a MGB Plastics,A044595,14/07/2021,1412545,10240.00,General Materials
North West Leicestershire District Council,31UH,Street Management,Environment Waste Management,ENOWM,One51 ES Plastics(UK) Ltd  t/a MGB Plastics,A044595,29/07/2021,1412833,10800.00,General Materials
North West Leicestershire District Council,31UH,Planning & Development,Environment Community Planning,ECP,Online Ergonomics Ltd,A034750,14/07/2021,1412506,351.77,Operational Equipment
North West Leicestershire District Council,31UH,Leisure & Culture,Sport & Physical Activity,SPA,Optimum Pitch Ltd,A046848,29/07/2021,1412951,500.00,Street Sport Programme
North West Leicestershire District Council,31UH,Housing Repairs,HRA Housing Repairs & Maintenance,HRAHRM,Orbis Property Protection Ltd,A028149,07/07/2021,1412459,695.00,Void Property Clearance Services
North West Leicestershire District Council,31UH,Street Management,Environment Transport,ENOT,Pakawaste Ltd,A032627,29/07/2021,1412952,332.00,Repairs - Parts
North West Leicestershire District Council,31UH,Street Management,Environment Transport,ENOT,Pd Supplies Ltd,A002198,29/07/2021,1412983,368.10,Repairs - Parts
North West Leicestershire District Council,31UH,Economic Development,Business Focus Group,BFG,Pet Deli Ltd,A046983,29/07/2021,1413198,1000.00,Digital Growth Grant
North West Leicestershire District Council,31UH,Leisure & Culture,Cultural Services Arts & Events,CULTEV,Phoenix Children's Foundation,A045102,29/07/2021,1412294,1400.00,Donation
North West Leicestershire District Council,31UH,Information Technology,ICT Services,ICT,Phoenix Software Limited,A001298,07/07/2021,1412083,126814.72,Corporate IT Licences
North West Leicestershire District Council,31UH,Information Technology,ICT Services,ICT,Phoenix Software Limited,A001298,21/07/2021,1412696,11526.25,Admin Equipment - Maintenance
North West Leicestershire District Council,31UH,Information Technology,ICT Services,ICT,Phoenix Software Limited,A001298,29/07/2021,1412783,2898.00,Admin Equipment - Maintenance
North West Leicestershire District Council,31UH,Property Services,Property Commercial Lettings,PROPCL,Pitney Bowes Finance Plc,A032630,29/07/2021,1412772,289.88,Postages
North West Leicestershire District Council,31UH,Street Management,Environment Parks,ENOP,Plantscape Ltd,A033650,04/08/2021,1413347,8691.60,Horticultural Supplies
North West Leicestershire District Council,31UH,Street Management,Environment Transport,ENOT,Pod Point Ltd,A045298,21/07/2021,1412729,4011.74,Operational Equipment
North West Leicestershire District Council,31UH,Street Management,Environment - Street Scene,ESS,Pod Point Ltd,A045298,21/07/2021,1412745,13734.63,Contract Payments (Other) Ext
North West Leicestershire District Council,31UH,Street Management,Environment Transport,ENOT,Pod Point Ltd,A045298,21/07/2021,1412730,-700.00,Operational Equipment
North West Leicestershire District Council,31UH,Chief Exec,Chief Executive,CHEX,Pollards Fruit & Veg,A045637,14/07/2021,1412566,640.00,Food Deliveries
North West Leicestershire District Council,31UH,Housing,HRA Housing Management,HRAHM,PPG Architectural Coatings Ltd,A000876,29/07/2021,1413040,1905.25,Internal Decorations
North West Leicestershire District Council,31UH,Economic Development,Business Focus Group,BFG,Primary PPA Cover,A046932,07/07/2021,1412409,1000.00,Grants
North West Leicestershire District Council,31UH,Finance,Financial Planning,FINPLA,Proactis Ltd,A043852,29/07/2021,1413180,4120.00,Computing
North West Leicestershire District Council,31UH,Street Management,Environment Parks,ENOP,Public Sector Software Ltd,A029902,21/07/2021,1411722,13230.00,Computer Software Maintenance
North West Leicestershire District Council,31UH,Communications,Corporate - Communications,CP,Quadient UK Ltd,A000079,21/07/2021,1412848,5000.00,Postages
North West Leicestershire District Council,31UH,Housing,HRA Housing Management,HRAHM,Rapid Secure Limited,A043887,29/07/2021,1413039,255.00,Legal & Professional Services
North West Leicestershire District Council,31UH,Street Management,Environment - Street Scene,ESS,RAS Town Planning Services,A045293,07/07/2021,1412347,3588.00,Consultants Fees
North West Leicestershire District Council,31UH,Economic Development,Business Focus Group,BFG,Reabrook,A046968,29/07/2021,1413154,28146.00,Business Growth Grant
North West Leicestershire District Council,31UH,Housing,HRA Housing Management,HRAHM,Readings Property Group Ltd,A045486,21/07/2021,1412917,425.00,Legal & Professional Services
North West Leicestershire District Council,31UH,Housing,HRA Housing Management,HRAHM,Readings Property Group Ltd,A045486,04/08/2021,1412503,250.00,Legal & Professional Services
North West Leicestershire District Council,31UH,Housing,HRA Housing Management,HRAHM,Readings Property Group Ltd,A045486,21/07/2021,1407555,285.00,Legal & Professional Services
North West Leicestershire District Council,31UH,Housing,HRA Housing Management,HRAHM,Readings Property Group Ltd,A045486,21/07/2021,1410722,250.00,Legal & Professional Services
North West Leicestershire District Council,31UH,Street Management,Environment - Street Scene,ESS,Reflec Signs & Graphics Ltd,A025348,07/07/2021,1412231,925.00,Operational Equipment
North West Leicestershire District Council,31UH,Street Management,Environment Transport,ENOT,Reflec Signs & Graphics Ltd,A025348,14/07/2021,1412514,295.00,Operational Equipment - Rep & Maint
North West Leicestershire District Council,31UH,Street Management,Environment - Street Scene,ESS,Reflec Signs & Graphics Ltd,A025348,21/07/2021,1412820,285.00,Operational Equipment
North West Leicestershire District Council,31UH,Street Management,Environment Parks,ENOP,Regarde Security Ltd,A013049,21/07/2021,1412548,1104.00,Security Services
North West Leicestershire District Council,31UH,Property Services,Property Facilities Management,PROPFM,Regarde Security Ltd,A013049,29/07/2021,1412801,552.00,Building Security
North West Leicestershire District Council,31UH,Property Services,Property Facilities Management,PROPFM,Regarde Security Ltd,A013049,29/07/2021,1412802,432.26,Building Security
North West Leicestershire District Council,31UH,Property Services,Property Facilities Management,PROPFM,Regarde Security Ltd,A013049,29/07/2021,1412806,276.00,Security Services
North West Leicestershire District Council,31UH,Economic Development,Business Focus Group,BFG,Reward-It Ltd,A046926,21/07/2021,1412721,24900.00,Subscriptions
North West Leicestershire District Council,31UH,Street Management,Environment Transport,ENOT,Riverside Truck Rental Ltd,A045702,14/07/2021,1412703,5500.00,Hire Of Transport
North West Leicestershire District Council,31UH,Street Management,Environment Transport,ENOT,Riverside Truck Rental Ltd,A045702,14/07/2021,1412704,5170.00,Hire Of Transport
North West Leicestershire District Council,31UH,Street Management,Environment Transport,ENOT,Riverside Truck Rental Ltd,A045702,14/07/2021,1412705,1100.00,Hire Of Transport
North West Leicestershire District Council,31UH,Street Management,Environment Transport,ENOT,Riverside Truck Rental Ltd,A045702,14/07/2021,1412706,3938.00,Hire Of Transport
North West Leicestershire District Council,31UH,Street Management,Environment Transport,ENOT,Riverside Truck Rental Ltd,A045702,14/07/2021,1412707,2448.30,Hire Of Transport
North West Leicestershire District Council,31UH,Planning & Development,Environment - Development Control,EDC,Rob Thompson Urbanism Limited,A045846,07/07/2021,1412312,3150.00,Consultants Fees
North West Leicestershire District Council,31UH,Planning & Development,Environment - Development Control,EDC,Rob Thompson Urbanism Limited,A045846,07/07/2021,1412313,6363.00,Consultants Fees
North West Leicestershire District Council,31UH,Housing,HRA Housing Management,HRAHM,Redacted - Personal Data,A046975,29/07/2021,1413171,250.00,Under Occupancy Incentives
North West Leicestershire District Council,31UH,Street Management,Environment Transport,ENOT,S & B Tyres Limited,A034071,14/07/2021,1412584,520.00,Transport Costs - Tyres
North West Leicestershire District Council,31UH,Street Management,Environment Transport,ENOT,S & B Tyres Limited,A034071,29/07/2021,1412985,727.00,Transport Costs - Tyres
North West Leicestershire District Council,31UH,Street Management,Environment Transport,ENOT,S & B Tyres Limited,A034071,29/07/2021,1412986,800.00,Transport Costs - Tyres
North West Leicestershire District Council,31UH,Chief Exec,Chief Executive,CHEX,Sable Leigh Consultancy Ltd T/A SLC Rail,A042727,14/07/2021,1412531,500.00,Consultants Fees
North West Leicestershire District Council,31UH,Street Management,Environment Transport,ENOT,Scarab Sweepers Limited,A001445,14/07/2021,1412720,309.12,Repairs - Parts
North West Leicestershire District Council,31UH,Street Management,Environment Transport,ENOT,Second 2 None,A031408,14/07/2021,1412692,7930.00,Contract Cleaning
North West Leicestershire District Council,31UH,Property Services,Property Facilities Management,PROPFM,Second Element Ltd,A046693,29/07/2021,1413032,783.98,Legionella Monitoring
North West Leicestershire District Council,31UH,Street Management,Environment Transport,ENOT,Selby's Garage (Woodhouse) Ltd,A044011,14/07/2021,1412700,830.79,Hire Of Operational Equipment
North West Leicestershire District Council,31UH,Street Management,Environment Transport,ENOT,Selby's Garage (Woodhouse) Ltd,A044011,14/07/2021,1412702,501.33,Hire Of Operational Equipment
North West Leicestershire District Council,31UH,Housing,HRA Housing Management,HRAHM,Severn Trent Water Limited,A001468,07/07/2021,1412297,7700.73,Water Charges (Metered)
North West Leicestershire District Council,31UH,Street Management,Environment - Street Scene,ESS,Siemens Energy Services Ltd,A024546,14/07/2021,1412617,606.00,General Repairs
North West Leicestershire District Council,31UH,Economic Development,Business Focus Group,BFG,Simon Foote Architects,A045677,21/07/2021,1412748,1440.00,Consultants Fees
North West Leicestershire District Council,31UH,Information Technology,ICT Services,ICT,Six Degrees Technology Group Ltd,A044205,14/07/2021,1412556,18259.33,Admin Equipment - Maintenance
North West Leicestershire District Council,31UH,Corporate Director,Human Resources,HR,Specsavers Corporate Eyecare,A028625,14/07/2021,1412598,525.00,Eyecare Vouchers
North West Leicestershire District Council,31UH,Finance,Financial Planning,FINPLA,Sports & Leisure Management Ltd,A045556,21/07/2021,1412849,833333.33,Contract Payments (Other) Ext
North West Leicestershire District Council,31UH,Finance,Financial Planning,FINPLA,Sports & Leisure Management Ltd,A045556,21/07/2021,1412918,238367.77,Contract Payments (Other) Ext
North West Leicestershire District Council,31UH,Leisure & Culture,Sport & Physical Activity,SPA,Sports & Leisure Management Ltd,A045556,29/07/2021,1413028,3337.34,Contract Payment
North West Leicestershire District Council,31UH,Finance,Financial Planning,FINPLA,Sports & Leisure Management Ltd,A045556,29/07/2021,1413202,16536.00,Payments To Contractor
North West Leicestershire District Council,31UH,Information Technology,ICT Services,ICT,Stone Computers Ltd,A023214,07/07/2021,1412351,299.85,Administrative Equipment
North West Leicestershire District Council,31UH,Information Technology,ICT Services,ICT,Stone Computers Ltd,A023214,29/07/2021,1413081,308.85,Operational Equipment
North West Leicestershire District Council,31UH,Economic Development,Business Focus Group,BFG,Sunnyside Garden Centre Ltd,A029345,29/07/2021,1413150,60000.00,Operational Purchases
North West Leicestershire District Council,31UH,Housing Repairs,HRA Housing Repairs & Maintenance,HRAHRM,Sure Maintenance Ltd,A040460,29/07/2021,1413010,7962.84,Plumbing & Heating
North West Leicestershire District Council,31UH,Housing Repairs,HRA Housing Repairs & Maintenance,HRAHRM,Sure Maintenance Ltd,A040460,29/07/2021,1413011,761.30,Plumbing & Heating
North West Leicestershire District Council,31UH,Housing Repairs,HRA Housing Repairs & Maintenance,HRAHRM,Sure Maintenance Ltd,A040460,29/07/2021,1413012,1378.62,Plumbing & Heating
North West Leicestershire District Council,31UH,Communications,Corporate - Communications,CP,Sutton Media Ltd,A046705,21/07/2021,1412307,380.00,Advertising
North West Leicestershire District Council,31UH,Communications,Corporate - Communications,CP,Sutton Media Ltd,A046705,21/07/2021,1412786,1140.00,Advertising
North West Leicestershire District Council,31UH,Housing Repairs,HRA Housing Repairs & Maintenance,HRAHRM,T & S Heating Ltd,A046054,14/07/2021,1412718,2337.65,Housing repairs
North West Leicestershire District Council,31UH,Housing Repairs,HRA Housing Repairs & Maintenance,HRAHRM,T & S Heating Ltd,A046054,07/07/2021,1412474,2332.33,Housing repairs
North West Leicestershire District Council,31UH,Economic Development,Business Focus Group,BFG,Take The Weekend Off Limited,A046967,29/07/2021,1413152,30000.00,Business Growth Grant
North West Leicestershire District Council,31UH,Finance,Financial Planning,FINPLA,Technicare Ltd,A046950,14/07/2021,1412601,833.33,insurance
North West Leicestershire District Council,31UH,Street Management,Environment - Street Scene,ESS,TECSERV UK LIMITED,A028261,14/07/2021,1409816,2150.00,Operational Equipment
North West Leicestershire District Council,31UH,Environmental Health,Environmental Health & Licensing,EEHL,Tennals Pest Control,A045705,14/07/2021,1412435,2180.79,External Contractor Payments
North West Leicestershire District Council,31UH,Street Management,Environment Transport,ENOT,Terberg Matec UK Limited,A001647,29/07/2021,1412991,1398.33,Repairs - Parts
North West Leicestershire District Council,31UH,Economic Development,Business Focus Group,BFG,The National Forest Charitable Trust,A042268,29/07/2021,1413151,32809.00,Business Growth Grant
North West Leicestershire District Council,31UH,Finance,Financial Planning,FINPLA,The Office of the Police and Crime Commissioner for Leicestershire,A007096,07/07/2021,1412484,855131.80,Precept
North West Leicestershire District Council,31UH,Planning & Development,Environment - Town Centre/CCTV,ECCTV,The Professional Promotion Company Ltd,A043727,29/07/2021,1413080,371.00,Service Contracts
North West Leicestershire District Council,31UH,Legal & Democratic,Legal Services,LDLS,Thomson Reuters (Professional) UK Limited,A037595,29/07/2021,1413000,1171.77,Computing
North West Leicestershire District Council,31UH,Housing Repairs,HRA Housing Repairs & Maintenance,HRAHRM,Timber-Link Fencing Ltd,A033297,14/07/2021,1412604,594.00,External Contractor Payments
North West Leicestershire District Council,31UH,Housing Repairs,HRA Housing Repairs & Maintenance,HRAHRM,Timber-Link Fencing Ltd,A033297,14/07/2021,1412605,1100.00,External Contractor Payments
North West Leicestershire District Council,31UH,Housing Repairs,HRA Housing Repairs & Maintenance,HRAHRM,Timber-Link Fencing Ltd,A033297,14/07/2021,1412607,425.00,External Contractor Payments
North West Leicestershire District Council,31UH,Housing Repairs,HRA Housing Repairs & Maintenance,HRAHRM,Timber-Link Fencing Ltd,A033297,14/07/2021,1412608,396.00,External Contractor Payments
North West Leicestershire District Council,31UH,Housing Repairs,HRA Housing Repairs & Maintenance,HRAHRM,Timber-Link Fencing Ltd,A033297,14/07/2021,1412609,550.00,External Contractor Payments
North West Leicestershire District Council,31UH,Housing Repairs,HRA Housing Repairs & Maintenance,HRAHRM,Timber-Link Fencing Ltd,A033297,14/07/2021,1412610,765.00,External Contractor Payments
North West Leicestershire District Council,31UH,Housing Repairs,HRA Housing Repairs & Maintenance,HRAHRM,Timber-Link Fencing Ltd,A033297,14/07/2021,1412611,1103.00,External Contractor Payments
North West Leicestershire District Council,31UH,Housing Repairs,HRA Housing Repairs & Maintenance,HRAHRM,Timber-Link Fencing Ltd,A033297,14/07/2021,1412612,343.00,External Contractor Payments
North West Leicestershire District Council,31UH,Housing Repairs,HRA Housing Repairs & Maintenance,HRAHRM,Timber-Link Fencing Ltd,A033297,14/07/2021,1412613,2650.00,External Contractor Payments
North West Leicestershire District Council,31UH,Housing Repairs,HRA Housing Repairs & Maintenance,HRAHRM,Timber-Link Fencing Ltd,A033297,14/07/2021,1412614,361.00,External Contractor Payments
North West Leicestershire District Council,31UH,Housing Repairs,HRA Housing Repairs & Maintenance,HRAHRM,Timber-Link Fencing Ltd,A033297,14/07/2021,1412615,2245.00,External Contractor Payments
North West Leicestershire District Council,31UH,Planning & Development,Environment - Development Control,EDC,TMP Worldwide Ltd,A045319,07/07/2021,1412309,493.28,Advertising
North West Leicestershire District Council,31UH,Planning & Development,Environment - Development Control,EDC,TMP Worldwide Ltd,A045319,07/07/2021,1412310,340.52,Advertising
North West Leicestershire District Council,31UH,Planning & Development,Environment - Development Control,EDC,TMP Worldwide Ltd,A045319,07/07/2021,1412314,894.92,Advertising
North West Leicestershire District Council,31UH,Finance,Exchequer Services,EXCH,Total Gas & Power,A033385,22/07/2021,1412946,14277.63,Electricity
North West Leicestershire District Council,31UH,Finance,Exchequer Services,EXCH,Tradebe,A042250,28/07/2021,1413228,660.00,Operational Equipment
North West Leicestershire District Council,31UH,Economic Development,Business Focus Group,BFG,Trans-Continental Marketing Ltd,A037563,29/07/2021,1413156,60000.00,Business Growth Grant
North West Leicestershire District Council,31UH,Housing Repairs,HRA Housing Repairs & Maintenance,HRAHRM,Travis Perkins Trading Co Ltd,A001693,04/08/2021,1413402,97864.03,General Materials
North West Leicestershire District Council,31UH,Housing Repairs,HRA Housing Repairs & Maintenance,HRAHRM,Travis Perkins Trading Co Ltd,A001693,04/08/2021,1413403,4622.40,General Materials
North West Leicestershire District Council,31UH,Housing Repairs,HRA Housing Repairs & Maintenance,HRAHRM,Travis Perkins Trading Co Ltd,A001693,04/08/2021,1413404,1268.00,General Materials
North West Leicestershire District Council,31UH,Housing Repairs,HRA Housing Repairs & Maintenance,HRAHRM,Travis Perkins Trading Co Ltd,A001693,04/08/2021,1413405,127514.26,General Materials
North West Leicestershire District Council,31UH,Housing Repairs,HRA Housing Repairs & Maintenance,HRAHRM,Travis Perkins Trading Co Ltd,A001693,04/08/2021,1413406,1585.00,General Materials
North West Leicestershire District Council,31UH,Housing Repairs,HRA Housing Repairs & Maintenance,HRAHRM,Travis Perkins Trading Co Ltd,A001693,04/08/2021,1413407,3853.00,General Materials
North West Leicestershire District Council,31UH,Planning & Development,Environment - Development Control,EDC,Trent Rivers Trust,A041633,29/07/2021,1413035,10920.00,River Mease Expenditure
North West Leicestershire District Council,31UH,Planning & Development,Environment - Development Control,EDC,Trent Rivers Trust,A041633,29/07/2021,1413034,5440.00,External Legal Fees & Advice
North West Leicestershire District Council,31UH,Street Management,Environment Transport,ENOT,Triscan Systems Limited,A036521,07/07/2021,1412248,1080.00,Operational Equipment
North West Leicestershire District Council,31UH,Housing,HRA Housing Management,HRAHM,Tunstall Healthcare (UK) Limited,A001701,07/07/2021,1412470,6932.24,Service Management - Support Services
North West Leicestershire District Council,31UH,Housing,HRA Older Persons Service,HRAOPS,Tunstall Healthcare (UK) Limited,A001701,04/08/2021,1412352,7045.24,Alarm System Telephones
North West Leicestershire District Council,31UH,Property Services,Property Commercial Lettings,PROPCL,Urban Planters Leicestershire (limited),A003371,14/07/2021,1412462,552.50,Internal Decorations
North West Leicestershire District Council,31UH,Street Management,Environment Transport,ENOT,Vectec Limited,A044103,14/07/2021,1412708,325.00,Operational Equipment - Rep & Maint
North West Leicestershire District Council,31UH,Street Management,Environment - Street Scene,ESS,Water Plus Limited,A044043,07/07/2021,1412323,372.42,Water Charges (Metered)
North West Leicestershire District Council,31UH,Property Services,Property Commercial Lettings,PROPCL,Water Plus Limited,A044043,07/07/2021,1412324,353.54,Water Charges (Metered)
North West Leicestershire District Council,31UH,Property Services,Property Commercial Lettings,PROPCL,Water Plus Limited,A044043,07/07/2021,1412341,1260.22,Water Charges (Metered)
North West Leicestershire District Council,31UH,Property Services,Property Commercial Lettings,PROPCL,Water Plus Limited,A044043,07/07/2021,1412343,423.64,Water Charges (Metered)
North West Leicestershire District Council,31UH,Street Management,Environment - Street Scene,ESS,Water Plus Limited,A044043,21/07/2021,1412817,325.89,Sewerage & Environmental
North West Leicestershire District Council,31UH,Street Management,Environment - Street Scene,ESS,Water Plus Limited,A044043,21/07/2021,1412819,481.42,Sewerage & Environmental
North West Leicestershire District Council,31UH,Property Services,Property Commercial Lettings,PROPCL,Water Plus Limited,A044043,29/07/2021,1412999,848.68,Water Charges (Metered)
North West Leicestershire District Council,31UH,Street Management,Environment Transport,ENOT,Watling JCB Ltd,A032114,14/07/2021,1412585,651.38,Repairs - Labour
North West Leicestershire District Council,31UH,Street Management,Environment Waste Management,ENOWM,WEBASPX Limited,A035913,29/07/2021,1413183,16767.00,Consultants Fees
North West Leicestershire District Council,31UH,Street Management,Environment Transport,ENOT,Westbury Industrial Supplies Limited,A009933,14/07/2021,1412596,894.50,Protective Clothing
North West Leicestershire District Council,31UH,Street Management,Environment Transport,ENOT,Westbury Industrial Supplies Limited,A009933,21/07/2021,1412829,550.48,Protective Clothing
North West Leicestershire District Council,31UH,Street Management,Environment Parks,ENOP,Westbury Industrial Supplies Limited,A009933,21/07/2021,1412831,534.88,Protective Clothing
North West Leicestershire District Council,31UH,Housing Repairs,HRA Housing Repairs & Maintenance,HRAHRM,Westbury Industrial Supplies Limited,A009933,21/07/2021,1412595,418.00,Protective Clothing
North West Leicestershire District Council,31UH,Street Management,Environment Transport,ENOT,Westbury Industrial Supplies Limited,A009933,29/07/2021,1411711,1904.13,Protective Clothing
North West Leicestershire District Council,31UH,Street Management,Environment Transport,ENOT,Westermans International Ltd,A046852,07/07/2021,1412249,1659.35,Operational Equipment
North West Leicestershire District Council,31UH,Corporate Director,Human Resources,HR,Wider Plan Ltd,A043948,14/07/2021,1412496,1312.00,Staff Benefit Scheme
North West Leicestershire District Council,31UH,Planning & Development,Environment - Development Control,EDC,Wildwood Forestry,A046478,04/08/2021,1413275,4360.00,River Mease Expenditure
North West Leicestershire District Council,31UH,Planning & Development,Environment - Development Control,EDC,Wildwood Forestry,A046478,04/08/2021,1413276,20703.65,River Mease Expenditure
North West Leicestershire District Council,31UH,Finance,Financial Planning,FINPLA,Wilks Head & Eve LLP,A041842,07/07/2021,1412227,7200.00,Legal & Professional Services
North West Leicestershire District Council,31UH,Economic Development,Business Focus Group,BFG,Wobbly Pins,A046982,29/07/2021,1413197,950.00,Digital Growth Grant
North West Leicestershire District Council,31UH,Economic Development,Business Focus Group,BFG,Zeeko Ltd,A046973,29/07/2021,1413162,45000.00,Business Growth Grant
North West Leicestershire District Council,31UH,Finance,Financial Planning,FINPLA,Zurich Municipal,A001835,21/07/2021,1412757,640.00,Medical Fees
North West Leicestershire District Council,31UH,Finance,Financial Planning,FINPLA,Zurich Municipal,A001835,21/07/2021,1412758,1625.00,Insurance
